lending/lending_fUSD_20250621
["ID","MTS","AMOUNT","RATE_DAILY","PERIOD"]
[366823135,1750476643461,-500.0,0.00028669,2]
[366823136,1750476643470,-512.0,0.00028669,2]
[366823137,1750476643479,-500.0,0.00028669,2]
[366823138,1750476643489,-500.0,0.00028669,2]
[366823139,1750476643498,-500.0,0.00028669,2]
[366823140,1750476643508,-500.0,0.00028669,2]
[366823141,1750476643517,-500.0,0.00028669,2]
[366823142,1750476643527,-987.0,0.00028669,2]
[366823143,1750476643536,-500.0,0.00028669,2]
[366823144,1750476643546,-500.0,0.00028669,2]
[366823145,1750476643557,-500.0,0.00028669,2]
[366823146,1750476643566,-500.0,0.00028669,2]
[366823147,1750476643575,-500.0,0.00028669,2]
[366823148,1750476643584,-500.0,0.00028669,2]
[366823149,1750476643594,-500.0,0.00028669,2]
[366823150,1750476643603,-500.0,0.00028669,2]
[366823151,1750476643612,-500.0,0.00028669,2]
[366823152,1750476643622,-500.0,0.00028669,2]
[366823153,1750476643631,-500.0,0.00028669,2]
[366823154,1750476643640,-649.0,0.00028669,2]
[366823155,1750476643649,-500.0,0.00028669,2]
[366823156,1750476643659,-500.0,0.00028669,2]
[366823157,1750476643668,-500.0,0.00028669,2]
[366823158,1750476643677,-500.0,0.00028669,2]
[366823159,1750476643687,-500.0,0.00028669,2]
[366823160,1750476643697,-500.0,0.00028669,2]
[366823161,1750476643706,-500.0,0.00028669,2]
[366823162,1750476643715,-500.0,0.00028669,2]
[366823164,1750476643725,-500.0,0.00028669,2]
[366823166,1750476643735,-500.0,0.00028669,2]
[366823167,1750476643745,-500.0,0.00028669,2]
[366823168,1750476643755,-500.0,0.00028669,2]
[366823169,1750476643764,-500.0,0.00028669,2]
[366823171,1750476643773,-500.0,0.00028669,2]
[366823172,1750476643782,-500.0,0.00028669,2]
[366823173,1750476643791,-500.0,0.00028669,2]
[366823174,1750476643800,-500.0,0.00028669,2]
[366823175,1750476643809,-500.0,0.00028669,2]
[366823176,1750476643818,-502.0,0.00028669,2]
[366823177,1750476643827,-500.0,0.00028669,2]
[366823178,1750476643836,-500.0,0.00028669,2]
[366823179,1750476643846,-500.0,0.00028669,2]
[366823180,1750476643855,-500.0,0.00028669,2]
[366823181,1750476643865,-500.0,0.00028669,2]
[366823182,1750476643875,-500.0,0.00028669,2]
[366823183,1750476643886,-500.0,0.00028669,2]
[366823184,1750476643895,-500.0,0.00028669,2]
[366823185,1750476643905,-500.0,0.00028669,2]
[366823186,1750476643915,-500.0,0.00028669,2]
[366823187,1750476643924,-500.0,0.00028669,2]
[366823188,1750476643940,-500.0,0.00028669,2]
[366823189,1750476643951,-500.0,0.00028669,2]
[366823190,1750476643960,-500.0,0.00028669,2]
[366823191,1750476643969,-500.0,0.00028669,2]
[366823192,1750476643979,-500.0,0.00028669,2]
[366823193,1750476643988,-500.0,0.00028669,2]
[366823194,1750476643998,-500.0,0.00028669,2]
[366823195,1750476644007,-500.0,0.00028669,2]
[366823196,1750476644017,-500.0,0.00028669,2]
[366823197,1750476644026,-500.0,0.00028669,2]
[366823198,1750476644036,-500.0,0.00028669,2]
[366823199,1750476644046,-500.0,0.00028669,2]
[366823200,1750476644056,-500.0,0.00028669,2]
[366823201,1750476644065,-500.0,0.00028669,2]
[366823202,1750476644076,-500.0,0.00028669,2]
[366823203,1750476644085,-500.0,0.00028669,2]
[366823204,1750476644095,-500.0,0.00028669,2]
[366823205,1750476644105,-500.0,0.00028669,2]
[366823206,1750476644115,-500.0,0.00028669,2]
[366823207,1750476644126,-500.0,0.00028669,2]
[366823208,1750476644137,-500.0,0.00028669,2]
[366823209,1750476644147,-500.0,0.00028669,2]
[366823210,1750476644158,-500.0,0.00028669,2]
[366823211,1750476644168,-500.0,0.00028669,2]
[366823212,1750476644178,-500.0,0.00028669,2]
[366823213,1750476644189,-500.0,0.00028669,2]
[366823214,1750476644199,-500.0,0.00028669,2]
[366823215,1750476644210,-500.0,0.00028669,2]
[366823216,1750476644220,-500.0,0.00028669,2]
[366823217,1750476644230,-500.0,0.00028669,2]
[366823218,1750476644241,-500.0,0.00028669,2]
[366823219,1750476644250,-500.0,0.00028669,2]
[366823220,1750476644259,-500.0,0.00028669,2]
[366823221,1750476644269,-500.0,0.00028669,2]
[366823222,1750476644279,-500.0,0.00028669,2]
[366823223,1750476644288,-500.0,0.00028669,2]
[366823224,1750476644297,-500.0,0.00028669,2]
[366823225,1750476644307,-500.0,0.00028669,2]
[366823226,1750476644317,-500.0,0.00028669,2]
[366823227,1750476644327,-500.0,0.00028669,2]
[366823228,1750476644337,-500.0,0.00028669,2]
[366823229,1750476644347,-500.0,0.00028669,2]
[366823230,1750476644357,-500.0,0.00028669,2]
[366823231,1750476644366,-500.0,0.00028669,2]
[366823232,1750476644376,-500.0,0.00028669,2]
[366823233,1750476644386,-500.0,0.00028669,2]
[366823234,1750476644396,-500.0,0.00028669,2]
[366823235,1750476644407,-500.0,0.00028669,2]
[366823236,1750476644419,-500.0,0.00028669,2]
[366823237,1750476644430,-500.0,0.00028669,2]
[366823238,1750476644440,-500.0,0.00028669,2]
[366823239,1750476644450,-500.0,0.00028669,2]
[366823240,1750476644459,-500.0,0.00028669,2]
[366823241,1750476644469,-500.0,0.00028669,2]
[366823242,1750476644480,-500.0,0.00028669,2]
[366823243,1750476644489,-500.0,0.00028669,2]
[366823244,1750476644500,-500.0,0.00028669,2]
[366823245,1750476644509,-500.0,0.00028669,2]
[366823246,1750476644519,-500.0,0.00028669,2]
[366823247,1750476644529,-500.0,0.00028669,2]
[366823248,1750476644539,-500.0,0.00028669,2]
[366823249,1750476644550,-500.0,0.00028669,2]
[366823250,1750476644560,-500.0,0.00028669,2]
[366823251,1750476644570,-500.0,0.00028669,2]
[366823252,1750476644580,-500.0,0.00028669,2]
[366823253,1750476644590,-500.0,0.00028669,2]
[366823254,1750476644600,-500.0,0.00028669,2]
[366823255,1750476644610,-500.0,0.00028669,2]
[366823256,1750476644619,-500.0,0.00028669,2]
[366823257,1750476644629,-500.0,0.00028669,2]
[366823258,1750476644639,-500.0,0.00028669,2]
[366823259,1750476644649,-500.0,0.00028669,2]
[366823260,1750476644658,-500.0,0.00028669,2]
[366823261,1750476644668,-500.0,0.00028669,2]
[366823262,1750476644678,-500.0,0.00028669,2]
[366823263,1750476644690,-500.0,0.00028669,2]
[366823264,1750476644700,-500.0,0.00028669,2]
[366823265,1750476644711,-500.0,0.00028669,2]
[366823266,1750476644721,-500.0,0.00028669,2]
[366823267,1750476644731,-500.0,0.00028669,2]
[366823268,1750476644741,-500.0,0.00028669,2]
[366823269,1750476644751,-500.0,0.00028669,2]
[366823270,1750476644760,-500.0,0.00028669,2]
[366823271,1750476644770,-500.0,0.00028669,2]
[366823272,1750476644781,-500.0,0.00028669,2]
[366823273,1750476644791,-751.0,0.00028669,2]
[366823274,1750476644801,-1766.48,0.000287,2]
[366823275,1750476644811,-847.5,0.00028729,15]
[366823276,1750476644821,-605.58553038,0.00028762,19]
[366823277,1750476644832,-4653.85,0.00028767,2]
[366823278,1750476644842,-155362.64289438,0.000288,2]
[366823279,1750476644852,-1300.0,0.000288,10]
[366823280,1750476644861,-150.0,0.00028839,2]
[366823281,1750476644871,-1598.67,0.00028865,2]
[366823282,1750476644881,-1700.0,0.000289,10]
[366823283,1750476644890,-150.0,0.00028964,2]
[366823284,1750476644900,-150.0,0.00028971,2]
[366823285,1750476644910,-18279.05862835,0.00028981,2]
[366823286,1750476644920,-155.61,0.00029,2]
[366823287,1750476644930,-155.61,0.00029,2]
[366823288,1750476644940,-1500.0,0.00029,2]
[366823289,1750476644950,-587.0,0.00029005,2]
[366823290,1750476644960,-421.96286467,0.00029013,2]
[366823291,1750476644970,-216.65825363,0.00029041,120]
[366823292,1750476644980,-581.53,0.000291,2]
[366823293,1750476644990,-579.44,0.000291,2]
[366823294,1750476645000,-6438.86,0.000291,2]
[366823295,1750476645011,-1357.693991,0.000291,8]
[366823296,1750476645020,-7000.0,0.0002912,2]
[366823297,1750476645030,-7084.20695883,0.00029136,2]
[366823298,1750476645040,-168.0,0.00029163,2]
[366823299,1750476645050,-168.0,0.00029212,2]
[366823300,1750476645060,-1164.87,0.00029227,2]
[366823301,1750476645071,-605.58553038,0.00029245,20]
[366823302,1750476645081,-2351.0,0.00029269,2]
[366823303,1750476645091,-14068.67,0.000293,2]
[366823304,1750476645101,-248.77242184,0.00029388,2]
[366823305,1750476645112,-168.0,0.0002941,2]
[366823306,1750476645122,-200.0,0.00029441,2]
[366823307,1750476645132,-461.39,0.000295,2]
[366823308,1750476645142,-1500.0,0.000295,2]
[366823309,1750476645152,-167.71,0.00029523,2]
[366823310,1750476645162,-150.0,0.0002956,2]
[366823311,1750476645172,-581.53,0.000296,2]
[366823312,1750476645183,-6438.86,0.000296,2]
[366823313,1750476645192,-151.0,0.00029602,3]
[366823314,1750476645203,-633.429,0.00029621,2]
[366823315,1750476645212,-803.0,0.00029621,2]
[366823316,1750476645223,-664.115,0.00029621,2]
[366823317,1750476645232,-1161.0,0.00029621,2]
[366823318,1750476645243,-4095.0,0.00029621,2]
[366823319,1750476645252,-156.0,0.00029621,2]
[366823320,1750476645262,-3335.0,0.00029621,2]
[366823321,1750476645272,-7084.20695883,0.00029656,2]
[366823322,1750476645282,-31784.47806534,0.000297,2]
[366823323,1750476645293,-605.58553038,0.00029728,21]
[366823324,1750476645305,-165.0,0.00029753,2]
[366823325,1750476645315,-18279.05862835,0.00029801,2]
[366823326,1750476645326,-176.15375822,0.00029802,2]
[366823327,1750476645335,-36366.23441265,0.000299,2]
[366823328,1750476645346,-129533.2977738,0.000299,2]
[366823329,1750476645355,-168.3888056,0.0002999,2]
[366823330,1750476645366,-231.28369723,0.0002999,2]
[366823331,1750476645376,-230.47601097,0.0002999,2]
[366823332,1750476645386,-500.0,0.00029999,2]
[366823333,1750476645400,-398.50794349,0.00029999,2]
[366823334,1750476645410,-500.0,0.00029999,2]
[366823335,1750476645420,-329.55446246,0.00029999,2]
[366823336,1750476645430,-423.14548105,0.00029999,2]
[366823337,1750476645441,-500.0,0.00029999,2]
[366823338,1750476645452,-500.0,0.00029999,2]
[366823340,1750476645462,-231.20735892,0.00029999,2]
[366823342,1750476645472,-500.0,0.00029999,2]
[366823344,1750476645482,-500.0,0.00029999,2]
[366823346,1750476645492,-500.0,0.00029999,2]
[366823348,1750476645502,-500.0,0.00029999,2]
[366823350,1750476645512,-640.50548871,0.00029999,2]
[366823352,1750476645522,-500.0,0.00029999,2]
[366823354,1750476645534,-500.0,0.00029999,2]
[366823356,1750476645544,-500.0,0.00029999,2]
[366823357,1750476645554,-500.0,0.00029999,2]
[366823358,1750476645565,-500.0,0.00029999,2]
[366823359,1750476645575,-500.0,0.00029999,2]
[366823360,1750476645585,-500.0,0.00029999,2]
[366823361,1750476645595,-500.0,0.00029999,2]
[366823362,1750476645605,-500.0,0.00029999,2]
[366823363,1750476645616,-1025.20142107,0.0003,2]
[366823364,1750476645626,-1762.68506266,0.0003,2]
[366823365,1750476645637,-161.00514847,0.0003,2]
[366823366,1750476645647,-1555.78354598,0.0003,2]
[366823367,1750476645657,-500.0,0.0003,4]
[366823368,1750476645667,-500.0,0.0003,5]
[366823369,1750476645678,-501.36742529,0.0003,6]
[366823370,1750476645688,-14430.2006073,0.0003,5]
[366823371,1750476645698,-227.84829237,0.0003,2]
[366823372,1750476645708,-3000.0,0.0003,30]
[366823373,1750476645718,-3000.0,0.0003,30]
[366823374,1750476645729,-1265.0,0.0003,2]
[366823375,1750476645740,-2634.71331333,0.0003,2]
[366823376,1750476645750,-19304.78689088,0.0003,2]
[366823377,1750476645760,-206596.98914474,0.0003,2]
[366823378,1750476645771,-5154.5008698,0.0003,30]
[366823379,1750476645781,-8000.0,0.0003,120]
[366823380,1750476645791,-1500.0,0.0003,2]
[366823381,1750476645801,-4000.0,0.0003,4]
[366823382,1750476645811,-214.0,0.0003,2]
[366823383,1750476645821,-237.47737579,0.00030015,2]
[366823384,1750476645831,-10958.82342758,0.00030043,3]
[366823385,1750476645841,-1165.36,0.00030049,2]
[366823386,1750476645852,-1165.36,0.00030049,2]
[366823387,1750476645862,-151.0,0.00030101,3]
[366823388,1750476645872,-1000.0,0.0003011,2]
[366823389,1750476645882,-7000.0,0.0003012,2]
[366823390,1750476645892,-195.70578031,0.0003013,2]
[366823391,1750476645902,-507.72345736,0.00030136,4]
[366823392,1750476645912,-490.0,0.00030136,4]
[366823393,1750476645922,-490.0,0.00030136,4]
[366823394,1750476645933,-447.26164547,0.00030136,4]
[366823395,1750476645943,-490.0,0.00030136,4]
[366823396,1750476645954,-490.0,0.00030136,4]
[366823397,1750476645964,-490.0,0.00030136,4]
[366823398,1750476645975,-213.33807314,0.00030136,4]
[366823399,1750476645986,-550.13,0.00030136,4]
[366823400,1750476645996,-501.35883003,0.00030136,4]
[366823401,1750476646006,-490.0,0.00030136,4]
[366823402,1750476646017,-490.0,0.00030136,4]
[366823403,1750476646027,-490.0,0.00030136,4]
[366823405,1750476646037,-490.0,0.00030136,4]
[366823406,1750476646048,-1265.22,0.00030136,2]
[366823407,1750476646058,-490.0,0.00030136,4]
[366823408,1750476646068,-490.0,0.00030136,4]
[366823409,1750476646078,-490.0,0.00030136,4]
[366823411,1750476646088,-490.0,0.00030136,4]
[366823412,1750476646098,-189.51937638,0.00030136,4]
[366823413,1750476646109,-490.0,0.00030136,4]
[366823414,1750476646118,-1844.83,0.00030136,4]
[366823415,1750476646128,-490.0,0.00030136,4]
[366823416,1750476646138,-490.0,0.00030136,4]
[366823417,1750476646148,-490.0,0.00030136,4]
[366823418,1750476646159,-490.0,0.00030136,4]
[366823419,1750476646169,-490.0,0.00030136,4]
[366823420,1750476646181,-494.49751328,0.00030136,4]
[366823421,1750476646192,-490.0,0.00030136,4]
[366823422,1750476646203,-490.0,0.00030136,4]
[366823423,1750476646213,-566.25,0.00030136,4]
[366823424,1750476646223,-490.0,0.00030136,4]
[366823425,1750476646234,-490.0,0.00030136,4]
[366823426,1750476646244,-490.0,0.00030136,4]
[366823427,1750476646255,-197.62126379,0.00030136,4]
[366823428,1750476646266,-490.0,0.00030136,4]
[366823429,1750476646277,-490.0,0.00030136,4]
[366823430,1750476646287,-490.0,0.00030136,4]
[366823431,1750476646298,-490.0,0.00030136,4]
[366823432,1750476646308,-490.0,0.00030136,4]
[366823433,1750476646318,-490.0,0.00030136,4]
[366823434,1750476646329,-490.0,0.00030136,4]
[366823435,1750476646339,-490.0,0.00030136,4]
[366823436,1750476646349,-490.0,0.00030136,4]
[366823437,1750476646360,-490.0,0.00030136,4]
[366823438,1750476646370,-490.0,0.00030136,4]
[366823439,1750476646380,-490.0,0.00030136,4]
[366823440,1750476646390,-815.36,0.00030136,4]
[366823441,1750476646404,-490.0,0.00030136,4]
[366823442,1750476646413,-490.0,0.00030136,4]
[366823443,1750476646424,-490.0,0.00030136,4]
[366823444,1750476646434,-490.0,0.00030136,4]
[366823445,1750476646446,-491.40908844,0.00030136,4]
[366823446,1750476646456,-490.0,0.00030136,4]
[366823447,1750476646467,-168.82,0.00030136,4]
[366823448,1750476646477,-490.0,0.00030136,4]
[366823449,1750476646487,-413.77232187,0.00030136,4]
[366823450,1750476646497,-490.0,0.00030136,4]
[366823451,1750476646508,-490.0,0.00030136,4]
[366823452,1750476646518,-490.0,0.00030136,4]
[366823453,1750476646528,-323.65188701,0.00030136,4]
[366823454,1750476646538,-490.0,0.00030136,4]
[366823455,1750476646549,-490.0,0.00030136,4]
[366823456,1750476646559,-431.17,0.00030136,4]
[366823457,1750476646570,-490.0,0.00030136,4]
[366823458,1750476646580,-490.0,0.00030136,4]
[366823459,1750476646591,-490.0,0.00030136,4]
[366823460,1750476646601,-490.0,0.00030136,4]
[366823461,1750476646612,-490.0,0.00030136,4]
[366823462,1750476646623,-490.0,0.00030136,4]
[366823463,1750476646633,-490.0,0.00030136,4]
[366823464,1750476646643,-490.0,0.00030136,4]
[366823465,1750476646653,-480.5031726,0.00030136,4]
[366823466,1750476646663,-490.0,0.00030136,4]
[366823467,1750476646673,-1105.26,0.00030136,4]
[366823468,1750476646683,-2283.27,0.00030136,4]
[366823469,1750476646693,-490.0,0.00030136,4]
[366823470,1750476646703,-490.0,0.00030136,4]
[366823471,1750476646713,-490.0,0.00030136,4]
[366823472,1750476646724,-490.0,0.00030136,4]
[366823473,1750476646733,-508.33451635,0.00030136,4]
[366823474,1750476646744,-666.7,0.00030136,4]
[366823475,1750476646754,-490.0,0.00030136,4]
[366823476,1750476646764,-490.0,0.00030136,4]
[366823477,1750476646774,-490.0,0.00030136,4]
[366823478,1750476646784,-490.0,0.00030136,4]
[366823479,1750476646795,-490.0,0.00030136,4]
[366823480,1750476646806,-490.0,0.00030136,4]
[366823481,1750476646815,-490.0,0.00030136,4]
[366823482,1750476646827,-490.0,0.00030136,4]
[366823483,1750476646838,-1741.95,0.00030136,4]
[366823484,1750476646851,-266.6427923,0.00030136,4]
[366823485,1750476646861,-490.0,0.00030136,4]
[366823486,1750476646871,-490.0,0.00030136,4]
[366823487,1750476646883,-661.18,0.00030136,4]
[366823488,1750476646895,-490.0,0.00030136,4]
[366823489,1750476646906,-490.0,0.00030136,4]
[366823490,1750476646916,-490.0,0.00030136,4]
[366823491,1750476646928,-490.0,0.00030136,4]
[366823492,1750476646940,-490.0,0.00030136,4]
[366823493,1750476646951,-507.44,0.00030136,4]
[366823494,1750476646963,-490.0,0.00030136,4]
[366823495,1750476646973,-812.55,0.00030136,4]
[366823496,1750476646983,-490.0,0.00030136,4]
[366823497,1750476646993,-490.0,0.00030136,4]
[366823498,1750476647004,-490.0,0.00030136,4]
[366823499,1750476647014,-588.99,0.00030136,4]
[366823500,1750476647025,-373.34092313,0.00030136,4]
[366823501,1750476647035,-156.22108673,0.00030136,4]
[366823502,1750476647046,-212.59123599,0.00030136,4]
[366823503,1750476647056,-171.41721427,0.00030136,4]
[366823504,1750476647066,-492.47581359,0.00030136,4]
[366823505,1750476647077,-490.0,0.00030136,4]
[366823506,1750476647088,-256.25373335,0.00030136,4]
[366823507,1750476647098,-490.0,0.00030136,4]
[366823508,1750476647109,-417.37756553,0.00030136,4]
[366823509,1750476647120,-490.0,0.00030136,4]
[366823510,1750476647130,-210.0,0.00030136,4]
[366823511,1750476647140,-805.13,0.00030136,4]
[366823512,1750476647151,-1263.76,0.00030136,4]
[366823513,1750476647161,-490.0,0.00030136,4]
[366823514,1750476647170,-490.0,0.00030136,4]
[366823515,1750476647180,-517.33284893,0.00030136,4]
[366823516,1750476647190,-493.326979,0.00030136,4]
[366823517,1750476647201,-490.0,0.00030136,4]
[366823518,1750476647211,-655.68,0.00030136,2]
[366823519,1750476647220,-490.0,0.00030136,4]
[366823520,1750476647230,-542.05612742,0.00030136,4]
[366823521,1750476647240,-859.54,0.00030136,4]
[366823522,1750476647250,-853.71,0.00030136,4]
[366823523,1750476647260,-490.0,0.00030136,4]
[366823524,1750476647271,-490.0,0.00030136,4]
[366823525,1750476647281,-249.54092227,0.00030136,4]
[366823526,1750476647290,-213.2538544,0.00030136,4]
[366823527,1750476647300,-490.0,0.00030136,4]
[366823528,1750476647310,-490.0,0.00030136,4]
[366823529,1750476647321,-490.0,0.00030136,4]
[366823530,1750476647331,-490.0,0.00030136,4]
[366823531,1750476647341,-491.39476477,0.00030136,4]
[366823532,1750476647354,-490.0,0.00030136,4]
[366823533,1750476647365,-500.0,0.00030136,2]
[366823534,1750476647375,-500.0,0.00030136,2]
[366823535,1750476647386,-490.0,0.00030136,4]
[366823536,1750476647398,-490.0,0.00030136,4]
[366823537,1750476647409,-527.48330573,0.00030136,4]
[366823538,1750476647420,-490.0,0.00030136,4]
[366823539,1750476647431,-490.0,0.00030136,4]
[366823540,1750476647441,-490.0,0.00030136,4]
[366823541,1750476647451,-490.0,0.00030136,4]
[366823542,1750476647462,-490.0,0.00030136,4]
[366823543,1750476647473,-700.83,0.00030136,4]
[366823544,1750476647484,-490.0,0.00030136,4]
[366823545,1750476647495,-182.94488064,0.00030136,4]
[366823546,1750476647506,-490.0,0.00030136,4]
[366823547,1750476647516,-490.0,0.00030136,4]
[366823548,1750476647527,-4653.85,0.00030137,2]
[366823549,1750476647538,-321.0,0.0003016,2]
[366823550,1750476647548,-7084.20695883,0.00030176,2]
[366823551,1750476647559,-605.58553038,0.0003021,22]
[366823552,1750476647570,-150.0,0.00030281,2]
[366823553,1750476647580,-579.0,0.00030301,2]
[366823554,1750476647590,-621.8166394,0.00030313,2]
[366823555,1750476647605,-271.4,0.00030332,2]
[366823556,1750476647617,-207.0,0.00030365,12]
[366823557,1750476647627,-14068.67,0.000304,2]
[366823558,1750476647639,-495.18449339,0.0003041,4]
[366823559,1750476647650,-490.0,0.0003041,4]
[366823560,1750476647660,-490.0,0.0003041,4]
[366823561,1750476647890,-490.0,0.0003041,4]
[366823562,1750476647901,-592.68,0.0003041,4]
[366823563,1750476647911,-550.13,0.0003041,4]
[366823564,1750476647921,-187.31443204,0.0003041,4]
[366823565,1750476647931,-348.04177175,0.0003041,4]
[366823566,1750476647941,-490.0,0.0003041,4]
[366823567,1750476647951,-1265.22,0.0003041,2]
[366823568,1750476647961,-490.0,0.0003041,4]
[366823569,1750476647971,-271.09672907,0.0003041,4]
[366823570,1750476647981,-484.24833053,0.0003041,4]
[366823571,1750476647991,-490.0,0.0003041,4]
[366823572,1750476648002,-490.0,0.0003041,4]
[366823573,1750476648012,-1844.83,0.0003041,4]
[366823574,1750476648023,-490.0,0.0003041,4]
[366823575,1750476648034,-490.0,0.0003041,4]
[366823576,1750476648046,-490.0,0.0003041,4]
[366823577,1750476648058,-490.0,0.0003041,4]
[366823578,1750476648069,-490.0,0.0003041,4]
[366823579,1750476648081,-566.25,0.0003041,4]
[366823580,1750476648092,-490.0,0.0003041,4]
[366823581,1750476648106,-490.0,0.0003041,4]
[366823582,1750476648116,-556.64392747,0.0003041,4]
[366823583,1750476648127,-490.0,0.0003041,4]
[366823584,1750476648137,-490.0,0.0003041,4]
[366823585,1750476648147,-490.0,0.0003041,4]
[366823586,1750476648157,-490.0,0.0003041,4]
[366823587,1750476648167,-490.0,0.0003041,4]
[366823588,1750476648179,-490.0,0.0003041,4]
[366823589,1750476648189,-490.0,0.0003041,4]
[366823590,1750476648199,-815.36,0.0003041,4]
[366823591,1750476648209,-490.0,0.0003041,4]
[366823592,1750476648219,-490.0,0.0003041,4]
[366823593,1750476648229,-490.0,0.0003041,4]
[366823594,1750476648239,-490.0,0.0003041,4]
[366823595,1750476648250,-490.0,0.0003041,4]
[366823596,1750476648260,-490.0,0.0003041,4]
[366823597,1750476648270,-490.0,0.0003041,4]
[366823598,1750476648280,-490.0,0.0003041,4]
[366823599,1750476648290,-490.0,0.0003041,4]
[366823600,1750476648300,-1105.26,0.0003041,4]
[366823601,1750476648309,-2283.27,0.0003041,4]
[366823602,1750476648320,-490.0,0.0003041,4]
[366823603,1750476648329,-490.0,0.0003041,4]
[366823604,1750476648339,-490.0,0.0003041,4]
[366823605,1750476648350,-666.7,0.0003041,4]
[366823606,1750476648360,-490.0,0.0003041,4]
[366823607,1750476648370,-490.0,0.0003041,4]
[366823608,1750476648379,-490.0,0.0003041,4]
[366823609,1750476648389,-490.0,0.0003041,4]
[366823610,1750476648400,-490.0,0.0003041,4]
[366823611,1750476648411,-490.0,0.0003041,4]
[366823612,1750476648421,-490.0,0.0003041,4]
[366823613,1750476648431,-1741.95,0.0003041,4]
[366823614,1750476648442,-490.0,0.0003041,4]
[366823615,1750476648453,-490.0,0.0003041,4]
[366823616,1750476648464,-661.18,0.0003041,4]
[366823617,1750476648474,-547.34650071,0.0003041,4]
[366823618,1750476648485,-490.0,0.0003041,4]
[366823619,1750476648495,-434.93133312,0.0003041,4]
[366823620,1750476648505,-507.44,0.0003041,4]
[366823621,1750476648516,-812.55,0.0003041,4]
[366823622,1750476648525,-490.0,0.0003041,4]
[366823623,1750476648536,-490.0,0.0003041,4]
[366823624,1750476648546,-588.99,0.0003041,4]
[366823625,1750476648555,-490.0,0.0003041,4]
[366823626,1750476648565,-490.0,0.0003041,4]
[366823627,1750476648575,-805.13,0.0003041,4]
[366823628,1750476648585,-1263.76,0.0003041,4]
[366823629,1750476648595,-490.0,0.0003041,4]
[366823630,1750476648605,-490.0,0.0003041,4]
[366823631,1750476648615,-655.68,0.0003041,2]
[366823632,1750476648626,-161.4570199,0.0003041,4]
[366823633,1750476648635,-859.54,0.0003041,4]
[366823634,1750476648645,-853.71,0.0003041,4]
[366823635,1750476648655,-490.0,0.0003041,4]
[366823636,1750476648665,-412.5,0.0003041,4]
[366823637,1750476648675,-490.0,0.0003041,4]
[366823638,1750476648685,-490.0,0.0003041,4]
[366823639,1750476648695,-490.0,0.0003041,4]
[366823640,1750476648705,-299.13358088,0.0003041,4]
[366823641,1750476648715,-490.0,0.0003041,4]
[366823642,1750476648725,-490.0,0.0003041,4]
[366823643,1750476648735,-490.0,0.0003041,4]
[366823644,1750476648745,-222.13618937,0.0003041,4]
[366823645,1750476648755,-490.0,0.0003041,4]
[366823646,1750476648765,-490.0,0.0003041,4]
[366823647,1750476648776,-700.83,0.0003041,4]
[366823648,1750476648786,-490.0,0.0003041,4]